[Event "December 19 Late 2023"]
[Site "https://www.chess.com"]
[Date "2023.12.19"]
[Round "9"]
[White "Alimpic, Aleksa"]
[Black "Igel2023"]
[Result "1-0"]
[Board "117"]
[TimeControl "180+1"]
[WhiteFideId "974323"]
[WhiteElo "2290"]
[BlackElo "2214"]
[WhiteTeam "SRB"]
[WhiteClock "0:00:05"]
[BlackClock "0:00:00"]

1. Nf3 {[%clk 0:02:59]}  Nf6 {[%clk 0:02:56]} 2. g3 {[%clk 0:02:59]}  g6 {[%clk 0:02:56]} 3. b3 {[%clk 0:02:59]}  Bg7 {[%clk 0:02:56]} 4. Bb2 {[%clk 0:03:00]}  O-O {[%clk 0:02:56]} 5. Bg2 {[%clk 0:03:00]}  d5 {[%clk 0:02:54]} 6. c4 {[%clk 0:02:58]}  c5 {[%clk 0:02:51]} 7. cxd5 {[%clk 0:02:54]}  Nxd5 {[%clk 0:02:51]} 8. Bxg7 {[%clk 0:02:54]}  Kxg7 {[%clk 0:02:51]} 9. O-O {[%clk 0:02:52]}  Nc6 {[%clk 0:02:46]} 10. d4 {[%clk 0:02:52]}  cxd4 {[%clk 0:02:37]} 11. Nxd4 {[%clk 0:02:53]}  e5 {[%clk 0:02:30]} 12. Nxc6 {[%clk 0:02:39]}  bxc6 {[%clk 0:02:29]} 13. Na3 {[%clk 0:02:22]}  Be6 {[%clk 0:02:22]} 14. Qc1 {[%clk 0:02:15]}  Rc8 {[%clk 0:02:14]} 15. Rd1 {[%clk 0:02:12]}  Qf6 {[%clk 0:02:06]} 16. Nc4 {[%clk 0:02:07]}  Ne7 {[%clk 0:01:16]} 17. Qc3 {[%clk 0:01:57]}  Bxc4 {[%clk 0:01:15]} 18. Qxc4 {[%clk 0:01:58]}  Rfd8 {[%clk 0:01:08]} 19. h4 {[%clk 0:01:39]}  c5 {[%clk 0:00:45]} 20. e3 {[%clk 0:01:31]}  Rd6 {[%clk 0:00:32]} 21. Rxd6 {[%clk 0:01:24]}  Qxd6 {[%clk 0:00:32]} 22. Rc1 {[%clk 0:01:20]}  h5 {[%clk 0:00:30]} 23. Bb7 {[%clk 0:01:05]}  Rc7 {[%clk 0:00:29]} 24. Bf3 {[%clk 0:01:04]}  Rc8 {[%clk 0:00:29]} 25. Rd1 {[%clk 0:01:01]}  Qf6 {[%clk 0:00:27]} 26. Kg2 {[%clk 0:00:59]}  Nf5 {[%clk 0:00:25]} 27. Qd5 {[%clk 0:00:47]}  Ne7 {[%clk 0:00:18]} 28. Qd6 {[%clk 0:00:40]}  Qxd6 {[%clk 0:00:17]} 29. Rxd6 {[%clk 0:00:41]}  Rc7 {[%clk 0:00:14]} 30. Kf1 {[%clk 0:00:33]}  Nf5 {[%clk 0:00:12]} 31. Ra6 {[%clk 0:00:30]}  Kf8 {[%clk 0:00:07]} 32. Ke2 {[%clk 0:00:30]}  Ke7 {[%clk 0:00:07]} 33. Kd3 {[%clk 0:00:28]}  Nd6 {[%clk 0:00:07]} 34. Bd5 {[%clk 0:00:25]}  f6 {[%clk 0:00:05]} 35. a4 {[%clk 0:00:19]}  g5 {[%clk 0:00:05]} 36. e4 {[%clk 0:00:12]}  gxh4 {[%clk 0:00:04]} 37. gxh4 {[%clk 0:00:13]}  Kd7 {[%clk 0:00:03]} 38. Kc3 {[%clk 0:00:11]}  Ke7 {[%clk 0:00:03]} 39. f3 {[%clk 0:00:11]}  Kd7 {[%clk 0:00:03]} 40. Kd3 {[%clk 0:00:11]}  Ke7 {[%clk 0:00:04]} 41. Bc4 {[%clk 0:00:09]}  Kd7 {[%clk 0:00:03]} 42. Bb5+ {[%clk 0:00:08]}  Ke7 {[%clk 0:00:04]} 43. Kc3 {[%clk 0:00:08]}  Ke6 {[%clk 0:00:03]} 44. Bc6 {[%clk 0:00:07]}  Ke7 {[%clk 0:00:02]} 45. Bd5 {[%clk 0:00:07]}  Kd7 {[%clk 0:00:02]} 46. Ra5 {[%clk 0:00:06]}  Ke7 {[%clk 0:00:02]} 47. Bc4 {[%clk 0:00:05]}  Kd7 {[%clk 0:00:03]} 48. Bb5+ {[%clk 0:00:04]}  Ke7 {[%clk 0:00:03]} 49. Ra6 {[%clk 0:00:04]}  Ke6 {[%clk 0:00:02]} 50. Rc6 {[%clk 0:00:05]}  Rxc6 {[%clk 0:00:01]} 51. Bxc6 {[%clk 0:00:05]}  f5 {[%clk 0:00:00]} 52. b4 {[%clk 0:00:05]} 1-0

[Event "December 19 Late 2023"]
[Site "https://www.chess.com"]
[Date "2023.12.19"]
[Round "9"]
[White "Oliveira, Tiago Batista"]
[Black "Guevara Sanchez, Erick Marvin"]
[Result "0-1"]
[Board "119"]
[TimeControl "180+1"]
[WhiteFideId "2108291"]
[BlackFideId "6700136"]
[WhiteElo "1962"]
[BlackElo "2040"]
[WhiteTeam "BRA"]
[BlackTeam "ESA"]
[WhiteClock "0:00:00"]
[BlackClock "0:00:17"]

1. d4 {[%clk 0:03:00]}  d5 {[%clk 0:02:59]} 2. c4 {[%clk 0:03:00]}  e6 {[%clk 0:02:59]} 3. Nf3 {[%clk 0:03:00]}  c5 {[%clk 0:02:59]} 4. cxd5 {[%clk 0:02:58]}  exd5 {[%clk 0:02:59]} 5. g3 {[%clk 0:02:58]}  Nc6 {[%clk 0:02:58]} 6. Bg2 {[%clk 0:02:57]}  Nf6 {[%clk 0:02:58]} 7. O-O {[%clk 0:02:30]}  Be7 {[%clk 0:02:58]} 8. dxc5 {[%clk 0:02:29]}  Bxc5 {[%clk 0:02:58]} 9. Nc3 {[%clk 0:02:28]}  O-O {[%clk 0:02:57]} 10. Bg5 {[%clk 0:02:26]}  Be6 {[%clk 0:02:56]} 11. Bxf6 {[%clk 0:02:05]}  Qxf6 {[%clk 0:02:54]} 12. Nxd5 {[%clk 0:02:05]}  Qxb2 {[%clk 0:02:53]} 13. Nc7 {[%clk 0:01:47]}  Rad8 {[%clk 0:02:52]} 14. Qc1 {[%clk 0:01:47]}  Qxc1 {[%clk 0:02:31]} 15. Rfxc1 {[%clk 0:01:27]}  Ba3 {[%clk 0:02:23]} 16. Nxe6 {[%clk 0:01:26]}  fxe6 {[%clk 0:02:17]} 17. Rd1 {[%clk 0:01:23]}  Nb4 {[%clk 0:02:05]} 18. Nd4 {[%clk 0:01:02]}  Rfe8 {[%clk 0:01:36]} 19. Rab1 {[%clk 0:00:45]}  Nxa2 {[%clk 0:01:30]} 20. Rxb7 {[%clk 0:00:24]}  Nc3 {[%clk 0:01:29]} 21. Rd3 {[%clk 0:00:15]}  Rxd4 {[%clk 0:01:28]} 22. Rxc3 {[%clk 0:00:14]}  Ra4 {[%clk 0:01:23]} 23. Rcc7 {[%clk 0:00:12]}  Bf8 {[%clk 0:01:21]} 24. Bh3 {[%clk 0:00:08]}  Ra1+ {[%clk 0:01:20]} 25. Kg2 {[%clk 0:00:08]}  a5 {[%clk 0:01:20]} 26. e4 {[%clk 0:00:06]}  a4 {[%clk 0:01:19]} 27. Ra7 {[%clk 0:00:06]}  a3 {[%clk 0:01:19]} 28. Bg4 {[%clk 0:00:05]}  Rb1 {[%clk 0:01:13]} 29. e5 {[%clk 0:00:04]}  Rb5 {[%clk 0:01:10]} 30. f4 {[%clk 0:00:04]}  Rb2+ {[%clk 0:01:09]} 31. Kh3 {[%clk 0:00:03]}  a2 {[%clk 0:00:54]} 32. Rc6 {[%clk 0:00:02]}  h6 {[%clk 0:00:27]} 33. Bxe6+ {[%clk 0:00:02]}  Kh8 {[%clk 0:00:24]} 34. Bxa2 {[%clk 0:00:01]}  Rd8 {[%clk 0:00:22]} 35. Rcc7 {[%clk 0:00:01]}  Rdd2 {[%clk 0:00:20]} 36. Be6 {[%clk 0:00:01]}  Rxh2+ {[%clk 0:00:20]} 37. Kg4 {[%clk 0:00:02]}  h5+ {[%clk 0:00:20]} 38. Kg5 {[%clk 0:00:00]}  Kh7 {[%clk 0:00:17]} 0-1

[Event "December 19 Late 2023"]
[Site "https://www.chess.com"]
[Date "2023.12.19"]
[Round "10"]
[White "Maksimovic, Bojan"]
[Black "Niemann, Hans Moke"]
[Result "1-0"]
[Board "1"]
[TimeControl "180+1"]
[WhiteFideId "14408120"]
[BlackFideId "2093596"]
[WhiteElo "2527"]
[BlackElo "2614"]
[WhiteTeam "BIH"]
[BlackTeam "USA"]
[WhiteClock "0:00:04"]
[BlackClock "0:00:00"]

1. a3 {[%clk 0:03:00]}  d5 {[%clk 0:02:53]} 2. h3 {[%clk 0:03:01]}  e5 {[%clk 0:02:52]} 3. e3 {[%clk 0:03:01]}  Nf6 {[%clk 0:02:51]} 4. d4 {[%clk 0:03:01]}  Bd6 {[%clk 0:02:43]} 5. dxe5 {[%clk 0:03:01]}  Bxe5 {[%clk 0:02:43]} 6. Nf3 {[%clk 0:03:02]}  Bd6 {[%clk 0:02:43]} 7. c4 {[%clk 0:03:03]}  dxc4 {[%clk 0:02:43]} 8. Bxc4 {[%clk 0:03:03]}  O-O {[%clk 0:02:44]} 9. O-O {[%clk 0:03:04]}  b6 {[%clk 0:02:43]} 10. b4 {[%clk 0:03:01]}  Bb7 {[%clk 0:02:44]} 11. Bb2 {[%clk 0:03:01]}  Nbd7 {[%clk 0:02:44]} 12. Nbd2 {[%clk 0:03:01]}  Qe7 {[%clk 0:02:44]} 13. Qc2 {[%clk 0:02:43]}  a5 {[%clk 0:02:41]} 14. b5 {[%clk 0:02:43]}  a4 {[%clk 0:02:33]} 15. Be2 {[%clk 0:02:38]}  Nc5 {[%clk 0:02:32]} 16. Nc4 {[%clk 0:02:15]}  Be4 {[%clk 0:02:28]} 17. Qc3 {[%clk 0:02:15]}  Rfd8 {[%clk 0:02:23]} 18. Rad1 {[%clk 0:02:13]}  h6 {[%clk 0:02:13]} 19. Nxd6 {[%clk 0:01:57]}  cxd6 {[%clk 0:02:13]} 20. Nd2 {[%clk 0:01:26]}  Bg6 {[%clk 0:01:58]} 21. Nc4 {[%clk 0:01:19]}  Rab8 {[%clk 0:01:58]} 22. Qd4 {[%clk 0:01:18]}  Ne6 {[%clk 0:01:57]} 23. Qh4 {[%clk 0:01:16]}  Ng5 {[%clk 0:01:42]} 24. Qf4 {[%clk 0:01:16]}  Ne8 {[%clk 0:01:24]} 25. Rd2 {[%clk 0:01:11]}  Ne6 {[%clk 0:01:23]} 26. Qg4 {[%clk 0:00:58]}  Nc5 {[%clk 0:01:14]} 27. Rfd1 {[%clk 0:00:55]}  Ne4 {[%clk 0:01:13]} 28. Rd4 {[%clk 0:00:55]}  N8f6 {[%clk 0:01:07]} 29. Qf4 {[%clk 0:00:54]}  Ne8 {[%clk 0:00:46]} 30. Bf3 {[%clk 0:00:49]}  Ng5 {[%clk 0:00:46]} 31. Nxd6 {[%clk 0:00:46]}  Ne6 {[%clk 0:00:35]} 32. Qe5 {[%clk 0:00:24]}  f6 {[%clk 0:00:35]} 33. Qg3 {[%clk 0:00:25]}  Nxd4 {[%clk 0:00:34]} 34. Rxd4 {[%clk 0:00:13]}  Rxd6 {[%clk 0:00:20]} 35. Qxg6 {[%clk 0:00:13]}  Rxd4 {[%clk 0:00:20]} 36. Bxd4 {[%clk 0:00:13]}  Nd6 {[%clk 0:00:19]} 37. Bd5+ {[%clk 0:00:13]}  Kh8 {[%clk 0:00:20]} 38. Bc6 {[%clk 0:00:12]}  Qe6 {[%clk 0:00:18]} 39. h4 {[%clk 0:00:12]}  Nf5 {[%clk 0:00:10]} 40. Qg4 {[%clk 0:00:05]}  Nxd4 {[%clk 0:00:08]} 41. Qxd4 {[%clk 0:00:06]}  Qe7 {[%clk 0:00:09]} 42. Qxa4 {[%clk 0:00:06]}  Rd8 {[%clk 0:00:09]} 43. g3 {[%clk 0:00:05]}  g5 {[%clk 0:00:06]} 44. Qg4 {[%clk 0:00:05]}  Kg7 {[%clk 0:00:05]} 45. h5 {[%clk 0:00:04]}  Qd6 {[%clk 0:00:05]} 46. Kg2 {[%clk 0:00:05]}  Qe5 {[%clk 0:00:04]} 47. a4 {[%clk 0:00:05]}  f5 {[%clk 0:00:02]} 48. Qf3 {[%clk 0:00:06]}  g4 {[%clk 0:00:02]} 49. Qe2 {[%clk 0:00:07]}  Qc3 {[%clk 0:00:02]} 50. Qa2 {[%clk 0:00:07]}  Kf6 {[%clk 0:00:01]} 51. Qb1 {[%clk 0:00:04]}  Rd6 {[%clk 0:00:01]} 52. Qa2 {[%clk 0:00:04]}  Qd2 {[%clk 0:00:00]} 53. Qg8 {[%clk 0:00:04]} 1-0

[Event "December 19 Late 2023"]
[Site "https://www.chess.com"]
[Date "2023.12.19"]
[Round "10"]
[White "Sarana, Alexey"]
[Black "Grigoriants, Sergey"]
[Result "1-0"]
[Board "6"]
[TimeControl "180+1"]
[WhiteFideId "24133795"]
[BlackFideId "4130804"]
[WhiteElo "2707"]
[BlackElo "2532"]
[WhiteTeam "SRB"]
[BlackTeam "HUN"]
[WhiteClock "0:00:03"]
[BlackClock "0:00:00"]

1. d4 {[%clk 0:03:00]}  d5 {[%clk 0:02:58]} 2. c4 {[%clk 0:03:01]}  c6 {[%clk 0:02:58]} 3. Nc3 {[%clk 0:03:02]}  Nf6 {[%clk 0:02:58]} 4. e3 {[%clk 0:03:01]}  e6 {[%clk 0:02:56]} 5. Nf3 {[%clk 0:03:01]}  Nbd7 {[%clk 0:02:52]} 6. Qc2 {[%clk 0:03:00]}  Bd6 {[%clk 0:02:46]} 7. Be2 {[%clk 0:03:01]}  O-O {[%clk 0:02:44]} 8. O-O {[%clk 0:03:01]}  dxc4 {[%clk 0:02:34]} 9. Bxc4 {[%clk 0:03:02]}  e5 {[%clk 0:02:32]} 10. a3 {[%clk 0:02:59]}  h6 {[%clk 0:02:28]} 11. h3 {[%clk 0:02:58]}  Re8 {[%clk 0:02:29]} 12. Ba2 {[%clk 0:02:43]}  Bb8 {[%clk 0:02:26]} 13. Rd1 {[%clk 0:02:31]}  Qc7 {[%clk 0:02:14]} 14. Qg6 {[%clk 0:01:44]}  Nf8 {[%clk 0:02:04]} 15. Qg3 {[%clk 0:01:43]}  exd4 {[%clk 0:01:52]} 16. Qxc7 {[%clk 0:01:44]}  Bxc7 {[%clk 0:01:53]} 17. Nxd4 {[%clk 0:01:45]}  Bd7 {[%clk 0:01:48]} 18. b4 {[%clk 0:01:44]}  Rad8 {[%clk 0:01:48]} 19. Bb2 {[%clk 0:01:44]}  Bc8 {[%clk 0:01:37]} 20. Na4 {[%clk 0:01:44]}  Ne4 {[%clk 0:01:33]} 21. f3 {[%clk 0:01:34]}  Ng3 {[%clk 0:01:25]} 22. Kf2 {[%clk 0:01:34]}  Nf5 {[%clk 0:01:25]} 23. Nxf5 {[%clk 0:01:33]}  Bxf5 {[%clk 0:01:26]} 24. Nc5 {[%clk 0:01:15]}  Bc8 {[%clk 0:01:26]} 25. Rac1 {[%clk 0:01:11]}  Rxd1 {[%clk 0:01:17]} 26. Rxd1 {[%clk 0:01:11]}  Rd8 {[%clk 0:01:17]} 27. Bd4 {[%clk 0:01:08]}  b6 {[%clk 0:01:01]} 28. Nd3 {[%clk 0:00:55]}  Ba6 {[%clk 0:00:41]} 29. Bb3 {[%clk 0:00:33]}  Ne6 {[%clk 0:00:31]} 30. Ne5 {[%clk 0:00:13]}  Nxd4 {[%clk 0:00:04]} 31. Nxf7 {[%clk 0:00:09]}  Nxb3 {[%clk 0:00:04]} 32. Nxd8 {[%clk 0:00:09]}  c5 {[%clk 0:00:04]} 33. Ne6 {[%clk 0:00:09]}  Be5 {[%clk 0:00:05]} 34. f4 {[%clk 0:00:05]}  Bb2 {[%clk 0:00:05]} 35. Rd7 {[%clk 0:00:03]}  Bc4 {[%clk 0:00:02]} 36. Nc7 {[%clk 0:00:02]}  Bxa3 {[%clk 0:00:01]} 37. b5 {[%clk 0:00:02]}  Bb2 {[%clk 0:00:00]} 38. Rd8+ {[%clk 0:00:03]} 1-0

[Event "December 19 Late 2023"]
[Site "https://www.chess.com"]
[Date "2023.12.19"]
[Round "10"]
[White "Esipenko, Andrey"]
[Black "Mikaelyan, Arman"]
[Result "1-0"]
[Board "8"]
[TimeControl "180+1"]
[WhiteFideId "24175439"]
[BlackFideId "13304852"]
[WhiteElo "2615"]
[BlackElo "2445"]
[WhiteTeam "FID"]
[BlackTeam "ARM"]
[WhiteClock "0:00:17"]
[BlackClock "0:00:00"]

1. e4 {[%clk 0:03:00]}  e5 {[%clk 0:02:58]} 2. Nf3 {[%clk 0:03:01]}  Nc6 {[%clk 0:02:59]} 3. Bc4 {[%clk 0:02:56]}  Nf6 {[%clk 0:02:58]} 4. d3 {[%clk 0:02:55]}  Bc5 {[%clk 0:02:58]} 5. Nc3 {[%clk 0:02:53]}  a6 {[%clk 0:02:57]} 6. Nd5 {[%clk 0:02:53]}  h6 {[%clk 0:02:55]} 7. O-O {[%clk 0:02:49]}  d6 {[%clk 0:02:54]} 8. Be3 {[%clk 0:02:48]}  Bg4 {[%clk 0:02:45]} 9. Bxc5 {[%clk 0:02:47]}  dxc5 {[%clk 0:02:46]} 10. Ne3 {[%clk 0:02:27]}  Bh5 {[%clk 0:02:39]} 11. h3 {[%clk 0:02:23]}  Qd7 {[%clk 0:02:04]} 12. g4 {[%clk 0:02:12]}  Bg6 {[%clk 0:02:04]} 13. Bd5 {[%clk 0:02:12]}  Nxd5 {[%clk 0:01:22]} 14. exd5 {[%clk 0:02:10]}  Ne7 {[%clk 0:01:20]} 15. Nxe5 {[%clk 0:02:09]}  Qd6 {[%clk 0:01:20]} 16. f4 {[%clk 0:02:03]}  O-O-O {[%clk 0:01:14]} 17. N5c4 {[%clk 0:01:51]}  Qf6 {[%clk 0:01:08]} 18. f5 {[%clk 0:01:47]}  Bh7 {[%clk 0:01:07]} 19. Qf3 {[%clk 0:01:45]}  h5 {[%clk 0:00:53]} 20. Rae1 {[%clk 0:01:38]}  hxg4 {[%clk 0:00:53]} 21. hxg4 {[%clk 0:01:39]}  Bg8 {[%clk 0:00:38]} 22. Qg3 {[%clk 0:01:27]}  g5 {[%clk 0:00:28]} 23. fxg6 {[%clk 0:01:02]}  Qxg6 {[%clk 0:00:28]} 24. Nf5 {[%clk 0:00:56]}  Nxf5 {[%clk 0:00:25]} 25. Rxf5 {[%clk 0:00:56]}  f6 {[%clk 0:00:09]} 26. Re7 {[%clk 0:00:55]}  Rd7 {[%clk 0:00:09]} 27. Rxd7 {[%clk 0:00:51]}  Kxd7 {[%clk 0:00:10]} 28. Qf4 {[%clk 0:00:45]}  Qh7 {[%clk 0:00:07]} 29. Rh5 {[%clk 0:00:44]}  Qg7 {[%clk 0:00:08]} 30. Rxh8 {[%clk 0:00:40]}  Qxh8 {[%clk 0:00:09]} 31. Ne3 {[%clk 0:00:40]}  Qh3 {[%clk 0:00:06]} 32. b3 {[%clk 0:00:33]}  Bf7 {[%clk 0:00:06]} 33. Kf2 {[%clk 0:00:33]}  Bg6 {[%clk 0:00:03]} 34. Qxf6 {[%clk 0:00:30]}  Qh2+ {[%clk 0:00:04]} 35. Ng2 {[%clk 0:00:30]}  Qh6 {[%clk 0:00:05]} 36. Kg3 {[%clk 0:00:23]}  Qh7 {[%clk 0:00:04]} 37. Nf4 {[%clk 0:00:23]}  Bf7 {[%clk 0:00:04]} 38. g5 {[%clk 0:00:23]}  Qg8 {[%clk 0:00:03]} 39. c4 {[%clk 0:00:22]}  c6 {[%clk 0:00:02]} 40. dxc6+ {[%clk 0:00:22]}  bxc6 {[%clk 0:00:03]} 41. g6 {[%clk 0:00:22]}  Be8 {[%clk 0:00:03]} 42. Kh4 {[%clk 0:00:22]}  Kc7 {[%clk 0:00:01]} 43. Kg5 {[%clk 0:00:23]}  Kb6 {[%clk 0:00:01]} 44. Qe7 {[%clk 0:00:20]}  Qh8 {[%clk 0:00:00]} 45. Nh5 {[%clk 0:00:17]} 1-0

[Event "December 19 Late 2023"]
[Site "https://www.chess.com"]
[Date "2023.12.19"]
[Round "10"]
[White "Makarian, Rudik"]
[Black "Martinez Ramirez, Lennis"]
[Result "1-0"]
[Board "9"]
[TimeControl "180+1"]
[WhiteFideId "44105681"]
[BlackFideId "3509079"]
[WhiteElo "2540"]
[BlackElo "2405"]
[WhiteTeam "FID"]
[BlackTeam "CUB"]
[WhiteClock "0:00:17"]
[BlackClock "0:00:00"]

1. d4 {[%clk 0:03:00]}  Nf6 {[%clk 0:02:59]} 2. c4 {[%clk 0:03:00]}  e6 {[%clk 0:02:55]} 3. Nf3 {[%clk 0:03:00]}  b6 {[%clk 0:02:52]} 4. g3 {[%clk 0:02:59]}  Ba6 {[%clk 0:02:51]} 5. b3 {[%clk 0:02:59]}  Bb4+ {[%clk 0:02:51]} 6. Bd2 {[%clk 0:02:59]}  Be7 {[%clk 0:02:51]} 7. Bg2 {[%clk 0:03:00]}  d5 {[%clk 0:02:50]} 8. O-O {[%clk 0:03:00]}  O-O {[%clk 0:02:49]} 9. Qc2 {[%clk 0:03:00]}  Nbd7 {[%clk 0:02:40]} 10. Rd1 {[%clk 0:02:56]}  Rc8 {[%clk 0:02:39]} 11. Bf4 {[%clk 0:02:52]}  c5 {[%clk 0:02:39]} 12. dxc5 {[%clk 0:02:44]}  Bxc5 {[%clk 0:02:35]} 13. e3 {[%clk 0:02:25]}  h6 {[%clk 0:02:19]} 14. Nc3 {[%clk 0:02:17]}  g5 {[%clk 0:01:17]} 15. Nxg5 {[%clk 0:02:16]}  hxg5 {[%clk 0:01:13]} 16. Bxg5 {[%clk 0:02:17]}  Be7 {[%clk 0:01:11]} 17. cxd5 {[%clk 0:01:57]}  Nxd5 {[%clk 0:01:09]} 18. Bxe7 {[%clk 0:01:51]}  Nxe7 {[%clk 0:00:55]} 19. Qb2 {[%clk 0:01:44]}  Rc7 {[%clk 0:00:48]} 20. Ne4 {[%clk 0:01:39]}  Nd5 {[%clk 0:00:49]} 21. h4 {[%clk 0:01:36]}  Qe7 {[%clk 0:00:48]} 22. Ng5 {[%clk 0:01:35]}  N7f6 {[%clk 0:00:45]} 23. Rd2 {[%clk 0:01:17]}  Rfc8 {[%clk 0:00:44]} 24. Bf3 {[%clk 0:01:07]}  Nb4 {[%clk 0:00:37]} 25. Rad1 {[%clk 0:01:02]}  Rc2 {[%clk 0:00:35]} 26. Qe5 {[%clk 0:01:00]}  Rxd2 {[%clk 0:00:34]} 27. Rxd2 {[%clk 0:01:01]}  Nd3 {[%clk 0:00:26]} 28. Qd4 {[%clk 0:00:48]}  Rd8 {[%clk 0:00:16]} 29. Qc3 {[%clk 0:00:44]}  Nc5 {[%clk 0:00:07]} 30. Kg2 {[%clk 0:00:39]}  Rxd2 {[%clk 0:00:07]} 31. Qxd2 {[%clk 0:00:40]}  Qd7 {[%clk 0:00:07]} 32. Qc3 {[%clk 0:00:39]}  Qd8 {[%clk 0:00:07]} 33. b4 {[%clk 0:00:38]}  Ncd7 {[%clk 0:00:07]} 34. a4 {[%clk 0:00:37]}  Qc8 {[%clk 0:00:05]} 35. Qd4 {[%clk 0:00:35]}  Bb7 {[%clk 0:00:06]} 36. e4 {[%clk 0:00:31]}  Bc6 {[%clk 0:00:04]} 37. e5 {[%clk 0:00:25]}  Bxf3+ {[%clk 0:00:04]} 38. Nxf3 {[%clk 0:00:26]}  Nd5 {[%clk 0:00:04]} 39. Qg4+ {[%clk 0:00:26]}  Kf8 {[%clk 0:00:04]} 40. Qh5 {[%clk 0:00:25]}  Qe8 {[%clk 0:00:02]} 41. Qh6+ {[%clk 0:00:23]}  Ke7 {[%clk 0:00:03]} 42. Qg5+ {[%clk 0:00:23]}  f6 {[%clk 0:00:02]} 43. exf6+ {[%clk 0:00:23]}  N7xf6 {[%clk 0:00:03]} 44. b5 {[%clk 0:00:22]}  Qg8 {[%clk 0:00:03]} 45. Qc1 {[%clk 0:00:20]}  Qg4 {[%clk 0:00:03]} 46. Qa3+ {[%clk 0:00:19]}  Kf7 {[%clk 0:00:03]} 47. Ne5+ {[%clk 0:00:19]}  Kg7 {[%clk 0:00:02]} 48. Nxg4 {[%clk 0:00:20]}  Nxg4 {[%clk 0:00:03]} 49. Qd6 {[%clk 0:00:18]}  Kf6 {[%clk 0:00:02]} 50. Qd8+ {[%clk 0:00:18]}  Kf5 {[%clk 0:00:02]} 51. Qa8 {[%clk 0:00:16]}  Ngf6 {[%clk 0:00:03]} 52. Qxa7 {[%clk 0:00:16]}  Ne4 {[%clk 0:00:00]} 53. a5 {[%clk 0:00:17]} 1-0

[Event "December 19 Late 2023"]
[Site "https://www.chess.com"]
[Date "2023.12.19"]
[Round "10"]
[White "Popov, Konstantin"]
[Black "Sjugirov, Sanan"]
[Result "0-1"]
[Board "10"]
[TimeControl "180+1"]
[WhiteFideId "34137910"]
[BlackFideId "4189302"]
[WhiteElo "2340"]
[BlackElo "2569"]
[WhiteTeam "FID"]
[BlackTeam "HUN"]
[WhiteClock "0:00:03"]
[BlackClock "0:00:24"]

1. e4 {[%clk 0:03:00]}  c5 {[%clk 0:02:59]} 2. Nf3 {[%clk 0:03:01]}  d6 {[%clk 0:03:00]} 3. d4 {[%clk 0:03:00]}  cxd4 {[%clk 0:03:01]} 4. Nxd4 {[%clk 0:03:01]}  Nf6 {[%clk 0:03:02]} 5. Nc3 {[%clk 0:03:02]}  a6 {[%clk 0:03:02]} 6. Bg5 {[%clk 0:03:02]}  e6 {[%clk 0:03:02]} 7. f4 {[%clk 0:03:02]}  Qb6 {[%clk 0:03:03]} 8. Qd2 {[%clk 0:02:54]}  Nc6 {[%clk 0:03:03]} 9. Nb3 {[%clk 0:02:39]}  Ng4 {[%clk 0:02:57]} 10. h3 {[%clk 0:02:14]}  Qe3+ {[%clk 0:02:50]} 11. Qxe3 {[%clk 0:02:13]}  Nxe3 {[%clk 0:02:51]} 12. Kd2 {[%clk 0:02:14]}  Nxf1+ {[%clk 0:02:49]} 13. Rhxf1 {[%clk 0:02:15]}  b5 {[%clk 0:02:39]} 14. a3 {[%clk 0:02:15]}  Bb7 {[%clk 0:02:39]} 15. Rad1 {[%clk 0:02:15]}  Be7 {[%clk 0:02:32]} 16. Bxe7 {[%clk 0:02:14]}  Kxe7 {[%clk 0:02:33]} 17. Ke3 {[%clk 0:02:11]}  Rhd8 {[%clk 0:02:31]} 18. Rd2 {[%clk 0:02:10]}  Rac8 {[%clk 0:02:32]} 19. Rfd1 {[%clk 0:02:09]}  b4 {[%clk 0:02:22]} 20. axb4 {[%clk 0:01:58]}  Nxb4 {[%clk 0:02:23]} 21. Rc1 {[%clk 0:01:56]}  Rc7 {[%clk 0:02:18]} 22. Ne2 {[%clk 0:01:48]}  g6 {[%clk 0:01:46]} 23. c3 {[%clk 0:01:47]}  Nc6 {[%clk 0:01:47]} 24. Ned4 {[%clk 0:01:44]}  Rb8 {[%clk 0:01:39]} 25. Ra1 {[%clk 0:01:42]}  Nd8 {[%clk 0:01:33]} 26. Na5 {[%clk 0:01:23]}  Bc8 {[%clk 0:01:32]} 27. e5 {[%clk 0:01:10]}  dxe5 {[%clk 0:01:30]} 28. fxe5 {[%clk 0:01:11]}  Bd7 {[%clk 0:01:22]} 29. Nab3 {[%clk 0:01:05]}  Nc6 {[%clk 0:01:13]} 30. Nxc6+ {[%clk 0:01:01]}  Bxc6 {[%clk 0:01:14]} 31. Nd4 {[%clk 0:00:57]}  Bb7 {[%clk 0:01:12]} 32. Ra3 {[%clk 0:00:52]}  Rc5 {[%clk 0:01:04]} 33. Nf3 {[%clk 0:00:47]}  a5 {[%clk 0:00:55]} 34. b4 {[%clk 0:00:31]}  axb4 {[%clk 0:00:54]} 35. cxb4 {[%clk 0:00:32]}  Rb5 {[%clk 0:00:54]} 36. Ra7 {[%clk 0:00:32]}  Ke8 {[%clk 0:00:48]} 37. Kf4 {[%clk 0:00:24]}  h6 {[%clk 0:00:45]} 38. Nd4 {[%clk 0:00:11]}  Rxb4 {[%clk 0:00:45]} 39. Ke3 {[%clk 0:00:11]}  Rc8 {[%clk 0:00:39]} 40. g3 {[%clk 0:00:09]}  Rc3+ {[%clk 0:00:37]} 41. Rd3 {[%clk 0:00:09]}  Rc5 {[%clk 0:00:35]} 42. Nf3 {[%clk 0:00:05]}  Bxf3 {[%clk 0:00:26]} 43. Kxf3 {[%clk 0:00:06]}  Rxe5 {[%clk 0:00:25]} 44. g4 {[%clk 0:00:06]}  g5 {[%clk 0:00:24]} 45. Rdd7 {[%clk 0:00:05]}  Rf4+ {[%clk 0:00:24]} 46. Kg3 {[%clk 0:00:03]}  Kf8 {[%clk 0:00:24]} 0-1

[Event "December 19 Late 2023"]
[Site "https://www.chess.com"]
[Date "2023.12.19"]
[Round "10"]
[White "Deac, Bogdan-Daniel"]
[Black "Dyachuk, Artem"]
[Result "1-0"]
[Board "14"]
[TimeControl "180+1"]
[WhiteFideId "1226380"]
[BlackFideId "34107924"]
[WhiteElo "2641"]
[BlackElo "2244"]
[WhiteTeam "ROU"]
[BlackTeam "UKR"]
[WhiteClock "0:00:18"]
[BlackClock "0:00:01"]

1. b3 {[%clk 0:03:00]}  e5 {[%clk 0:02:59]} 2. Bb2 {[%clk 0:03:01]}  Nc6 {[%clk 0:03:00]} 3. Nf3 {[%clk 0:03:01]}  e4 {[%clk 0:02:59]} 4. Nd4 {[%clk 0:03:01]}  Nf6 {[%clk 0:02:57]} 5. e3 {[%clk 0:03:01]}  d5 {[%clk 0:02:51]} 6. c4 {[%clk 0:02:59]}  Ne5 {[%clk 0:02:34]} 7. cxd5 {[%clk 0:02:50]}  Qxd5 {[%clk 0:02:35]} 8. Nc3 {[%clk 0:02:46]}  Qd8 {[%clk 0:02:35]} 9. Qb1 {[%clk 0:02:23]}  c5 {[%clk 0:02:29]} 10. Ndb5 {[%clk 0:02:20]}  Bf5 {[%clk 0:02:18]} 11. Na3 {[%clk 0:02:17]}  a6 {[%clk 0:02:12]} 12. Nc4 {[%clk 0:02:12]}  Nxc4 {[%clk 0:02:11]} 13. bxc4 {[%clk 0:02:11]}  Bd6 {[%clk 0:02:09]} 14. f4 {[%clk 0:02:09]}  h5 {[%clk 0:02:01]} 15. Be2 {[%clk 0:02:04]}  h4 {[%clk 0:01:58]} 16. h3 {[%clk 0:02:04]}  Qe7 {[%clk 0:01:54]} 17. a4 {[%clk 0:02:00]}  O-O-O {[%clk 0:01:39]} 18. Qc2 {[%clk 0:01:59]}  Bg6 {[%clk 0:01:35]} 19. Rf1 {[%clk 0:01:51]}  Qd7 {[%clk 0:01:23]} 20. a5 {[%clk 0:01:47]}  Kb8 {[%clk 0:01:06]} 21. Na4 {[%clk 0:01:45]}  Nh5 {[%clk 0:01:05]} 22. Nb6 {[%clk 0:01:20]}  Qe6 {[%clk 0:01:05]} 23. Rb1 {[%clk 0:01:07]}  Bxf4 {[%clk 0:00:35]} 24. Rxf4 {[%clk 0:00:57]}  Nxf4 {[%clk 0:00:34]} 25. exf4 {[%clk 0:00:58]}  e3 {[%clk 0:00:30]} 26. d3 {[%clk 0:00:58]}  f6 {[%clk 0:00:30]} 27. Nd5 {[%clk 0:00:45]}  Bf5 {[%clk 0:00:22]} 28. Bf3 {[%clk 0:00:40]}  Rhg8 {[%clk 0:00:21]} 29. Qe2 {[%clk 0:00:38]}  Rge8 {[%clk 0:00:16]} 30. Bc3 {[%clk 0:00:33]}  g5 {[%clk 0:00:10]} 31. Qb2 {[%clk 0:00:19]}  Rd7 {[%clk 0:00:06]} 32. Nxf6 {[%clk 0:00:19]}  Ree7 {[%clk 0:00:02]} 33. Nxd7+ {[%clk 0:00:18]}  Rxd7 {[%clk 0:00:03]} 34. Be5+ {[%clk 0:00:18]}  Kc8 {[%clk 0:00:02]} 35. Bd5 {[%clk 0:00:18]}  Kd8 {[%clk 0:00:01]} 36. Bxe6 {[%clk 0:00:18]} 1-0